fUSD/lending_fUSD_20260516
["ID","MTS","AMOUNT","RATE_DAILY","PERIOD"]
[422352751,1778863846000,-9233.85867882,0.00026451,2]
[422352734,1778863846000,-1312.1,0.00026296,2]
[422352749,1778863846000,-243.68906923,0.0002643,2]
[422352748,1778863846000,-368.68726446,0.00026397,2]
[422352750,1778863846000,-1638.34703997,0.00026451,2]
[422352746,1778863846000,-286.44593206,0.00026397,2]
[422352736,1778863846000,-167.12947964,0.00026383,2]
[422352738,1778863846000,-346.8294879,0.00026397,2]
[422352718,1778863846000,-460.16250347,0.00025866,21]
[422352753,1778863846000,-616.58611834,0.00026541,2]
[422352741,1778863846000,-347.88468778,0.00026397,2]
[422352742,1778863846000,-267.74391992,0.00026397,2]
[422352752,1778863846000,-2725.34111452,0.00026451,2]
[422352754,1778863846000,-243.68906923,0.00026588,7]
[422352757,1778863846000,-600.0,0.0002674,7]
[422352756,1778863846000,-500.0,0.0002674,7]
[422352759,1778863846000,-185.0,0.00026784,2]
[422352743,1778863846000,-152.11976165,0.00026397,2]
[422352760,1778863846000,-9325.0,0.00026848,2]
[422352755,1778863846000,-255.02,0.00026643,2]
[422352758,1778863846000,-243.68906923,0.00026746,7]
[422352835,1778863847000,-175.0,0.00027397,2]
[422352836,1778863847000,-175.0,0.00027397,2]
[422352837,1778863847000,-175.0,0.00027397,2]
[422352845,1778863847000,-175.0,0.00027397,2]
[422352840,1778863847000,-175.0,0.00027397,2]
[422352829,1778863847000,-175.0,0.00027397,2]
[422352844,1778863847000,-175.0,0.00027397,2]
[422352834,1778863847000,-175.0,0.00027397,2]
[422352839,1778863847000,-175.0,0.00027397,2]
[422352828,1778863847000,-175.0,0.00027397,2]
[422352842,1778863847000,-175.0,0.00027397,2]
[422352831,1778863847000,-175.0,0.00027397,2]
[422352843,1778863847000,-175.0,0.00027397,2]
[422352838,1778863847000,-175.0,0.00027397,2]
[422352849,1778863847000,-175.0,0.00027397,2]
[422352857,1778863847000,-175.0,0.00027397,2]
[422352858,1778863847000,-175.0,0.00027397,2]
[422352848,1778863847000,-175.0,0.00027397,2]
[422352846,1778863847000,-175.0,0.00027397,2]
[422352853,1778863847000,-175.0,0.00027397,2]
[422352855,1778863847000,-175.0,0.00027397,2]
[422352852,1778863847000,-175.0,0.00027397,2]
[422352851,1778863847000,-175.0,0.00027397,2]
[422352850,1778863847000,-175.0,0.00027397,2]
[422352854,1778863847000,-175.0,0.00027397,2]
[422352856,1778863847000,-175.0,0.00027397,2]
[422352862,1778863847000,-175.0,0.00027397,2]
[422352847,1778863847000,-175.0,0.00027397,2]
[422352825,1778863847000,-175.0,0.00027397,2]
[422352801,1778863847000,-151.0,0.00027397,2]
[422352826,1778863847000,-175.0,0.00027397,2]
[422352864,1778863847000,-181.0,0.00027397,2]
[422352802,1778863847000,-244.948204,0.00027397,2]
[422352803,1778863847000,-151.0,0.00027397,2]
[422352796,1778863847000,-151.0,0.00027397,2]
[422352798,1778863847000,-151.0,0.00027397,2]
[422352797,1778863847000,-151.0,0.00027397,2]
[422352800,1778863847000,-151.0,0.00027397,2]
[422352799,1778863847000,-151.0,0.00027397,2]
[422352804,1778863847000,-356.273201,0.00027397,2]
[422352805,1778863847000,-356.273201,0.00027397,2]
[422352815,1778863847000,-175.0,0.00027397,2]
[422352817,1778863847000,-175.0,0.00027397,2]
[422352809,1778863847000,-175.0,0.00027397,2]
[422352810,1778863847000,-175.0,0.00027397,2]
[422352807,1778863847000,-356.273201,0.00027397,2]
[422352806,1778863847000,-356.273201,0.00027397,2]
[422352813,1778863847000,-175.0,0.00027397,2]
[422352811,1778863847000,-175.0,0.00027397,2]
[422352808,1778863847000,-176.0008251,0.00027397,2]
[422352819,1778863847000,-175.0,0.00027397,2]
[422352822,1778863847000,-175.0,0.00027397,2]
[422352833,1778863847000,-175.0,0.00027397,2]
[422352832,1778863847000,-175.0,0.00027397,2]
[422352821,1778863847000,-175.0,0.00027397,2]
[422352823,1778863847000,-175.0,0.00027397,2]
[422352824,1778863847000,-175.0,0.00027397,2]
[422352827,1778863847000,-175.0,0.00027397,2]
[422352830,1778863847000,-175.0,0.00027397,2]
[422352866,1778863847000,-1500.0,0.00027397,2]
[422352841,1778863847000,-175.0,0.00027397,2]
[422352868,1778863847000,-184.06500138,0.00027397,21]
[422352908,1778863847000,-245.441297,0.00027397,2]
[422352912,1778863847000,-150.07261565,0.00027397,5]
[422352922,1778863847000,-384.371464,0.00027689,7]
[422352911,1778863847000,-231.92312519,0.00027397,7]
[422352913,1778863847000,-178.49594661,0.00027397,7]
[422352914,1778863847000,-2042.97,0.000274,7]
[422352918,1778863847000,-12688.03,0.0002768,7]
[422352915,1778863847000,-243.68906923,0.00027536,30]
[422352916,1778863847000,-1261.5615,0.0002755,2]
[422352917,1778863847000,-1159.2185,0.0002755,2]
[422352919,1778863847000,-384.371464,0.00027689,7]
[422352921,1778863847000,-384.371464,0.00027689,7]
[422352920,1778863847000,-384.371464,0.00027689,7]
[422352910,1778863847000,-150.0,0.00027397,2]
[422352924,1778863847000,-2042.97,0.000278,7]
[422352926,1778863847000,-243.68906923,0.00027852,60]
[422352925,1778863847000,-500.0,0.000278,7]
[422352928,1778863847000,-695.39793187,0.00027964,2]
[422352929,1778863847000,-214.997284,0.00028,7]
[422352927,1778863847000,-568.02388088,0.00027964,2]
[422352934,1778863847000,-2042.97,0.000282,7]
[422352935,1778863847000,-324.801637,0.00028205,7]
[422352931,1778863847000,-277.09721706,0.00028007,7]
[422352933,1778863847000,-243.68906923,0.00028168,60]
[422352932,1778863847000,-243.68906923,0.0002801,60]
[422352936,1778863847000,-324.801637,0.00028205,7]
[422352937,1778863847000,-324.801637,0.00028205,7]
[422352860,1778863847000,-175.0,0.00027397,2]
[422352923,1778863847000,-243.68906923,0.00027694,30]
[422352907,1778863847000,-9520.38,0.00027397,10]
[422352930,1778863847000,-600.0,0.00028,2]
[422352905,1778863847000,-151.0,0.00027397,2]
[422352906,1778863847000,-11424.45,0.00027397,10]
[422352874,1778863847000,-384.371464,0.00027397,2]
[422352876,1778863847000,-384.371464,0.00027397,2]
[422352870,1778863847000,-300.0,0.00027397,2]
[422352878,1778863847000,-384.371464,0.00027397,2]
[422352872,1778863847000,-384.371464,0.00027397,2]
[422352882,1778863847000,-151.0,0.00027397,2]
[422352885,1778863847000,-151.0,0.00027397,2]
[422352895,1778863847000,-151.0,0.00027397,2]
[422352897,1778863847000,-263.784183,0.00027397,2]
[422352896,1778863847000,-151.0,0.00027397,2]
[422352888,1778863847000,-151.0,0.00027397,2]
[422352889,1778863847000,-151.0,0.00027397,2]
[422352890,1778863847000,-576.38,0.00027397,2]
[422352880,1778863847000,-151.0,0.00027397,2]
[422352893,1778863847000,-151.0,0.00027397,2]
[422352891,1778863847000,-151.0,0.00027397,2]
[422352938,1778863847000,-324.801637,0.00028205,7]
[422352909,1778863847000,-150.52331778,0.00027397,2]
[422352903,1778863847000,-151.0,0.00027397,2]
[422352901,1778863847000,-151.0,0.00027397,2]
[422352899,1778863847000,-151.0,0.00027397,2]
[422352902,1778863847000,-151.0,0.00027397,2]
[422352887,1778863847000,-151.0,0.00027397,2]
[422352900,1778863847000,-151.0,0.00027397,2]
[422352894,1778863847000,-151.0,0.00027397,2]
[422352904,1778863847000,-151.0,0.00027397,2]
[422352892,1778863847000,-151.0,0.00027397,2]
[422352898,1778863847000,-151.0,0.00027397,2]
[422352979,1778863848000,-708.57,0.00028661,7]
[422352973,1778863848000,-383.39,0.0002863,2]
[422352967,1778863848000,-382.56,0.0002863,2]
[422352968,1778863848000,-810.84,0.0002863,2]
[422352970,1778863848000,-708.57,0.0002863,2]
[422352971,1778863848000,-886.92,0.0002863,2]
[422352969,1778863848000,-302.86,0.0002863,2]
[422352974,1778863848000,-376.36,0.00028633,30]
[422352981,1778863848000,-382.49,0.00028661,7]
[422352962,1778863848000,-10000.0,0.000285,2]
[422352966,1778863848000,-704.72,0.0002863,2]
[422352980,1778863848000,-886.92,0.00028661,7]
[422352985,1778863848000,-382.56,0.00028693,30]
[422352975,1778863848000,-704.72,0.00028661,7]
[422352982,1778863848000,-383.39,0.00028661,7]
[422352978,1778863848000,-302.86,0.00028661,7]
[422352984,1778863848000,-704.72,0.00028693,30]
[422352977,1778863848000,-810.84,0.00028661,7]
[422352983,1778863848000,-308.0,0.00028669,3]
[422352987,1778863848000,-302.86,0.00028693,30]
[422352998,1778863848000,-382.49,0.00028725,2]
[422352972,1778863848000,-382.49,0.0002863,2]
[422352997,1778863848000,-886.92,0.00028725,2]
[422352976,1778863848000,-382.56,0.00028661,7]
[422352965,1778863848000,-151.0,0.000286,7]
[422352949,1778863848000,-151.0,0.00028311,7]
[422352963,1778863848000,-2042.97,0.000286,7]
[422352988,1778863848000,-708.57,0.00028693,30]
[422352940,1778863848000,-1354.0,0.000283,2]
[422352939,1778863848000,-1312.1,0.00028267,2]
[422352948,1778863848000,-151.0,0.00028311,7]
[422352946,1778863848000,-3631.0,0.000283,2]
[422352947,1778863848000,-1441.29672666,0.00028311,30]
[422352942,1778863848000,-926.0,0.000283,2]
[422352943,1778863848000,-1270.0,0.000283,2]
[422352944,1778863848000,-1223.0,0.000283,2]
[422352941,1778863848000,-625.0,0.000283,2]
[422352945,1778863848000,-930.0,0.000283,2]
[422352952,1778863848000,-188.06796381,0.00028375,60]
[422352954,1778863848000,-165.39304983,0.00028397,7]
[422352953,1778863848000,-202.82634888,0.00028397,7]
[422352951,1778863848000,-151.0,0.00028311,7]
[422352950,1778863848000,-151.0,0.00028311,7]
[422352955,1778863848000,-7312.0,0.00028452,2]
[422352959,1778863848000,-10000.0,0.000285,2]
[422352960,1778863848000,-250.0,0.000285,2]
[422352961,1778863848000,-2000.0,0.000285,2]
[422352958,1778863848000,-2000.0,0.000285,2]
[422352956,1778863848000,-175.91391173,0.00028468,60]
[422352957,1778863848000,-152.0,0.00028493,7]
[422352964,1778863848000,-341.41,0.000286,7]
[422352986,1778863848000,-810.84,0.00028693,30]
[422352992,1778863848000,-704.72,0.00028725,2]
[422352993,1778863848000,-382.56,0.00028725,2]
[422353022,1778863848000,-704.72,0.0002882,2]
[422353025,1778863848000,-302.86,0.0002882,2]
[422353024,1778863848000,-810.84,0.0002882,2]
[422353023,1778863848000,-382.56,0.0002882,2]
[422353021,1778863848000,-164.18,0.00028798,7]
[422353028,1778863848000,-382.49,0.0002882,2]
[422353031,1778863848000,-382.56,0.00028852,7]
[422353029,1778863848000,-383.39,0.0002882,2]
[422353026,1778863848000,-708.57,0.0002882,2]
[422353027,1778863848000,-886.92,0.0002882,2]
[422353032,1778863848000,-810.84,0.00028852,7]
[422353018,1778863848000,-886.92,0.00028788,30]
[422353033,1778863848000,-302.86,0.00028852,7]
[422353040,1778863848000,-382.56,0.00028883,30]
[422353041,1778863848000,-810.84,0.00028883,30]
[422353042,1778863848000,-302.86,0.00028883,30]
[422353037,1778863848000,-383.39,0.00028852,7]
[422353039,1778863848000,-704.72,0.00028883,30]
[422353036,1778863848000,-382.49,0.00028852,7]
[422353034,1778863848000,-708.57,0.00028852,7]
[422353038,1778863848000,-271.0,0.0002888,7]
[422353044,1778863848000,-886.92,0.00028883,30]
[422352989,1778863848000,-886.92,0.00028693,30]
[422353043,1778863848000,-708.57,0.00028883,30]
[422353035,1778863848000,-886.92,0.00028852,7]
[422353019,1778863848000,-382.49,0.00028788,30]
[422353030,1778863848000,-704.72,0.00028852,7]
[422353016,1778863848000,-302.86,0.00028788,30]
[422352994,1778863848000,-810.84,0.00028725,2]
[422353014,1778863848000,-382.56,0.00028788,30]
[422352996,1778863848000,-708.57,0.00028725,2]
[422352991,1778863848000,-383.39,0.00028693,30]
[422352990,1778863848000,-382.49,0.00028693,30]
[422352995,1778863848000,-302.86,0.00028725,2]
[422353000,1778863848000,-704.72,0.00028756,7]
[422353004,1778863848000,-708.57,0.00028756,7]
[422353010,1778863848000,-489.302038,0.00028767,7]
[422353003,1778863848000,-302.86,0.00028756,7]
[422353011,1778863848000,-489.302038,0.00028767,7]
[422353001,1778863848000,-382.56,0.00028756,7]
[422352999,1778863848000,-383.39,0.00028725,2]
[422353020,1778863848000,-383.39,0.00028788,30]
[422353006,1778863848000,-382.49,0.00028756,7]
[422353009,1778863848000,-489.302038,0.00028767,7]
[422353007,1778863848000,-383.39,0.00028756,7]
[422353005,1778863848000,-886.92,0.00028756,7]
[422353008,1778863848000,-489.302038,0.00028767,7]
[422353013,1778863848000,-704.72,0.00028788,30]
[422353012,1778863848000,-150.0,0.00028767,2]
[422353017,1778863848000,-708.57,0.00028788,30]
[422353002,1778863848000,-810.84,0.00028756,7]
[422353015,1778863848000,-810.84,0.00028788,30]
[422353090,1778863849000,-708.57,0.0002901,2]
[422353083,1778863849000,-1591.68681333,0.00029,2]
[422353089,1778863849000,-302.86,0.0002901,2]
[422353080,1778863849000,-5507.25903255,0.00029,7]
[422353087,1778863849000,-382.56,0.0002901,2]
[422353073,1778863849000,-302.86,0.00028979,30]
[422353069,1778863849000,-3238.95483576,0.00028979,2]
[422353074,1778863849000,-708.57,0.00028979,30]
[422353076,1778863849000,-382.49,0.00028979,30]
[422353085,1778863849000,-2325.51885768,0.00029,2]
[422353079,1778863849000,-37559.18549759,0.00029,2]
[422353082,1778863849000,-214.997284,0.00029,30]
[422353096,1778863849000,-810.84,0.00029042,7]
[422353086,1778863849000,-704.72,0.0002901,2]
[422353084,1778863849000,-3032.64196497,0.00029,2]
[422353088,1778863849000,-810.84,0.0002901,2]
[422353092,1778863849000,-382.49,0.0002901,2]
[422353102,1778863849000,-479.6,0.00029055,45]
[422353098,1778863849000,-708.57,0.00029042,7]
[422353099,1778863849000,-886.92,0.00029042,7]
[422353103,1778863849000,-400.0,0.00029055,45]
[422353093,1778863849000,-383.39,0.0002901,2]
[422353091,1778863849000,-886.92,0.0002901,2]
[422353094,1778863849000,-704.72,0.00029042,7]
[422353070,1778863849000,-704.72,0.00028979,30]
[422353081,1778863849000,-2042.97,0.00029,7]
[422353072,1778863849000,-810.84,0.00028979,30]
[422353046,1778863849000,-383.39,0.00028883,30]
[422353075,1778863849000,-886.92,0.00028979,30]
[422353101,1778863849000,-383.39,0.00029042,7]
[422353053,1778863849000,-886.92,0.00028915,2]
[422353054,1778863849000,-382.49,0.00028915,2]
[422353045,1778863849000,-382.49,0.00028883,30]
[422353047,1778863849000,-188.55123638,0.00028904,30]
[422353051,1778863849000,-302.86,0.00028915,2]
[422353049,1778863849000,-382.56,0.00028915,2]
[422353050,1778863849000,-810.84,0.00028915,2]
[422353048,1778863849000,-704.72,0.00028915,2]
[422353052,1778863849000,-708.57,0.00028915,2]
[422353055,1778863849000,-383.39,0.00028915,2]
[422353065,1778863849000,-383.39,0.00028947,7]
[422353067,1778863849000,-500.0,0.0002897,2]
[422353064,1778863849000,-382.49,0.00028947,7]
[422353062,1778863849000,-708.57,0.00028947,7]
[422353059,1778863849000,-382.56,0.00028947,7]
[422353056,1778863849000,-500.0,0.00028932,60]
[422353066,1778863849000,-163.0,0.00028961,3]
[422353060,1778863849000,-810.84,0.00028947,7]
[422353058,1778863849000,-704.72,0.00028947,7]
[422353061,1778863849000,-302.86,0.00028947,7]
[422353063,1778863849000,-886.92,0.00028947,7]
[422353068,1778863849000,-1000.0,0.0002897,2]
[422353077,1778863849000,-383.39,0.00028979,30]
[422353078,1778863849000,-163.0,0.00028984,3]
[422353071,1778863849000,-382.56,0.00028979,30]
[422353057,1778863849000,-600.0,0.00028932,60]
[422353097,1778863849000,-302.86,0.00029042,7]
[422353158,1778863849000,-810.84,0.00029169,30]
[422353100,1778863849000,-382.49,0.00029042,7]
[422353136,1778863849000,-151.0,0.00029111,7]
[422353132,1778863849000,-209.600876,0.00029111,7]
[422353134,1778863849000,-209.600876,0.00029111,7]
[422353137,1778863849000,-151.0,0.00029111,7]
[422353139,1778863849000,-151.0,0.00029111,7]
[422353138,1778863849000,-151.0,0.00029111,7]
[422353141,1778863849000,-151.0,0.00029111,7]
[422353140,1778863849000,-489.302038,0.00029111,7]
[422353144,1778863849000,-489.302038,0.00029111,7]
[422353145,1778863849000,-501.57404206,0.0002913,5]
[422353143,1778863849000,-489.302038,0.00029111,7]
[422353146,1778863849000,-200.0,0.0002913,7]
[422353135,1778863849000,-209.600876,0.00029111,7]
[422353142,1778863849000,-489.302038,0.00029111,7]
[422353149,1778863849000,-382.56,0.00029137,7]
[422353152,1778863849000,-708.57,0.00029137,7]
[422353150,1778863849000,-810.84,0.00029137,7]
[422353153,1778863849000,-886.92,0.00029137,7]
[422353160,1778863849000,-708.57,0.00029169,30]
[422353151,1778863849000,-302.86,0.00029137,7]
[422353154,1778863849000,-382.49,0.00029137,7]
[422353157,1778863849000,-382.56,0.00029169,30]
[422353155,1778863849000,-383.39,0.00029137,7]
[422353156,1778863849000,-704.72,0.00029169,30]
[422353159,1778863849000,-302.86,0.00029169,30]
[422353095,1778863849000,-382.56,0.00029042,7]
[422353148,1778863849000,-704.72,0.00029137,7]
[422353133,1778863849000,-209.600876,0.00029111,7]
[422353147,1778863849000,-506.71837327,0.0002913,5]
[422353131,1778863849000,-151.0,0.00029111,7]
[422353104,1778863849000,-400.0,0.00029055,45]
[422353130,1778863849000,-151.0,0.00029111,7]
[422353107,1778863849000,-382.56,0.00029074,30]
[422353112,1778863849000,-382.49,0.00029074,30]
[422353111,1778863849000,-886.92,0.00029074,30]
[422353106,1778863849000,-704.72,0.00029074,30]
[422353108,1778863849000,-810.84,0.00029074,30]
[422353109,1778863849000,-302.86,0.00029074,30]
[422353110,1778863849000,-708.57,0.00029074,30]
[422353105,1778863849000,-400.0,0.00029055,45]
[422353113,1778863849000,-383.39,0.00029074,30]
[422353116,1778863849000,-3060.08,0.000291,2]
[422353119,1778863849000,-2073.56,0.000291,2]
[422353114,1778863849000,-591.7110099,0.00029097,2]
[422353118,1778863849000,-745.24,0.000291,2]
[422353128,1778863849000,-383.39,0.00029105,2]
[422353115,1778863849000,-1870.08,0.000291,2]
[422353127,1778863849000,-382.49,0.00029105,2]
[422353122,1778863849000,-382.56,0.00029105,2]
[422353124,1778863849000,-302.86,0.00029105,2]
[422353125,1778863849000,-708.57,0.00029105,2]
[422353129,1778863849000,-8484.0,0.00029111,2]
[422353121,1778863849000,-704.72,0.00029105,2]
[422353120,1778863849000,-11501.2,0.000291,2]
[422353117,1778863849000,-3726.18,0.000291,2]
[422353126,1778863849000,-886.92,0.00029105,2]
[422353123,1778863849000,-810.84,0.00029105,2]
[422353205,1778863850000,-800.0,0.0002954,11]
[422353201,1778863850000,-500.0,0.00029534,30]
[422353200,1778863850000,-500.0,0.00029534,30]
[422353199,1778863850000,-500.0,0.00029534,30]
[422353198,1778863850000,-1358.25352748,0.00029534,5]
[422353190,1778863850000,-500.0,0.00029458,2]
[422353192,1778863850000,-1000.0,0.000295,2]
[422353195,1778863850000,-150.0,0.00029534,2]
[422353196,1778863850000,-1028.46660076,0.00029534,5]
[422353191,1778863850000,-1000.0,0.00029479,7]
[422353202,1778863850000,-500.0,0.00029534,30]
[422353197,1778863850000,-1083.71739408,0.00029534,5]
[422353204,1778863850000,-530.62642262,0.00029534,30]
[422353214,1778863850000,-800.0,0.0002954,11]
[422353206,1778863850000,-800.0,0.0002954,11]
[422353207,1778863850000,-800.0,0.0002954,11]
[422353208,1778863850000,-800.0,0.0002954,11]
[422353220,1778863850000,-800.0,0.0002954,11]
[422353210,1778863850000,-800.0,0.0002954,11]
[422353209,1778863850000,-800.0,0.0002954,11]
[422353211,1778863850000,-800.0,0.0002954,11]
[422353219,1778863850000,-800.0,0.0002954,11]
[422353213,1778863850000,-800.0,0.0002954,11]
[422353215,1778863850000,-800.0,0.0002954,11]
[422353212,1778863850000,-800.0,0.0002954,11]
[422353189,1778863850000,-2042.97,0.000294,7]
[422353203,1778863850000,-500.0,0.00029534,30]
[422353188,1778863850000,-5000.0,0.000294,5]
[422353162,1778863850000,-382.49,0.00029169,30]
[422353194,1778863850000,-203.14907457,0.0002953,20]
[422353172,1778863850000,-383.39,0.00029201,2]
[422353216,1778863850000,-800.0,0.0002954,11]
[422353161,1778863850000,-886.92,0.00029169,30]
[422353166,1778863850000,-382.56,0.00029201,2]
[422353171,1778863850000,-382.49,0.00029201,2]
[422353168,1778863850000,-302.86,0.00029201,2]
[422353163,1778863850000,-383.39,0.00029169,30]
[422353164,1778863850000,-1000.57,0.000292,30]
[422353167,1778863850000,-810.84,0.00029201,2]
[422353170,1778863850000,-886.92,0.00029201,2]
[422353169,1778863850000,-708.57,0.00029201,2]
[422353165,1778863850000,-704.72,0.00029201,2]
[422353173,1778863850000,-1441.29672666,0.00029224,30]
[422353185,1778863850000,-1000.0,0.0002931,7]
[422353176,1778863850000,-704.89,0.00029232,7]
[422353184,1778863850000,-286.4520375,0.00029246,7]
[422353175,1778863850000,-382.7,0.00029232,7]
[422353174,1778863850000,-699.19,0.00029232,7]
[422353178,1778863850000,-810.96,0.00029232,7]
[422353177,1778863850000,-382.59,0.00029232,7]
[422353180,1778863850000,-708.69,0.00029232,7]
[422353179,1778863850000,-302.88,0.00029232,7]
[422353181,1778863850000,-886.96,0.00029232,7]
[422353183,1778863850000,-383.44,0.00029232,7]
[422353182,1778863850000,-382.49,0.00029232,7]
[422353187,1778863850000,-200.0,0.0002933,7]
[422353193,1778863850000,-1566.513373,0.000295,2]
[422353186,1778863850000,-1000.0,0.00029311,7]
[422353217,1778863850000,-800.0,0.0002954,11]
[422353275,1778863850000,-200.0,0.0003,11]
[422353221,1778863850000,-1128.32718608,0.00029572,7]
[422353250,1778863850000,-7181.76,0.00029872,2]
[422353252,1778863850000,-1000.0,0.00029873,7]
[422353247,1778863850000,-396.76801033,0.00029863,2]
[422353254,1778863850000,-2042.97,0.000299,7]
[422353251,1778863850000,-1000.0,0.00029873,7]
[422353259,1778863850000,-252.10274386,0.00029997,2]
[422353260,1778863850000,-151.0,0.00029997,7]
[422353269,1778863850000,-366.95497307,0.0003,30]
[422353258,1778863850000,-151.29401504,0.00029997,2]
[422353263,1778863850000,-525.06781649,0.0003,30]
[422353261,1778863850000,-1845.37660932,0.0003,2]
[422353265,1778863850000,-8710.72041311,0.0003,2]
[422353264,1778863850000,-165.49923737,0.0003,2]
[422353266,1778863850000,-10119.45472075,0.0003,2]
[422353267,1778863850000,-7577.07497615,0.0003,2]
[422353262,1778863850000,-500.0,0.0003,2]
[422353268,1778863850000,-1120.68215868,0.0003,2]
[422353270,1778863850000,-108812.25223187,0.0003,5]
[422353272,1778863850000,-311.28747582,0.0003,2]
[422353273,1778863850000,-251.0,0.0003,30]
[422353278,1778863850000,-200.0,0.0003,11]
[422353279,1778863850000,-322.88,0.0003,11]
[422353277,1778863850000,-200.0,0.0003,11]
[422353271,1778863850000,-1100.81,0.0003,7]
[422353276,1778863850000,-200.0,0.0003,11]
[422353274,1778863850000,-20171.83415881,0.0003,2]
[422353218,1778863850000,-800.0,0.0002954,11]
[422353257,1778863850000,-240.77300292,0.0002999,2]
[422353253,1778863850000,-80074.43742446,0.000299,2]
[422353280,1778863850000,-10000.0,0.0003,10]
[422353249,1778863850000,-227.31219486,0.00029863,2]
[422353255,1778863850000,-1000.0,0.00029914,7]
[422353223,1778863850000,-151.0,0.000296,7]
[422353224,1778863850000,-151.0,0.000296,7]
[422353225,1778863850000,-699.0,0.00029629,3]
[422353232,1778863850000,-500.0,0.00029863,2]
[422353226,1778863850000,-1000.0,0.00029722,7]
[422353229,1778863850000,-1000.0,0.0002986,7]
[422353222,1778863850000,-12688.03,0.000296,7]
[422353227,1778863850000,-1000.0,0.00029756,7]
[422353228,1778863850000,-152.0,0.00029857,8]
[422353230,1778863850000,-500.0,0.00029863,2]
[422353234,1778863850000,-500.0,0.00029863,2]
[422353244,1778863850000,-500.0,0.00029863,2]
[422353231,1778863850000,-500.0,0.00029863,2]
[422353233,1778863850000,-500.0,0.00029863,2]
[422353245,1778863850000,-500.0,0.00029863,2]
[422353248,1778863850000,-500.0,0.00029863,2]
[422353246,1778863850000,-500.0,0.00029863,2]
[422353239,1778863850000,-500.0,0.00029863,2]
[422353242,1778863850000,-381.91651709,0.00029863,2]
[422353241,1778863850000,-500.0,0.00029863,2]
[422353256,1778863850000,-163.0,0.00029949,3]
[422353243,1778863850000,-500.0,0.00029863,2]
[422353238,1778863850000,-500.0,0.00029863,2]
[422353236,1778863850000,-500.0,0.00029863,2]
[422353235,1778863850000,-500.0,0.00029863,2]
[422353240,1778863850000,-500.0,0.00029863,2]
[422353237,1778863850000,-500.0,0.00029863,2]
[422353314,1778863851000,-200.0,0.0003013,15]
[422353313,1778863851000,-200.0,0.0003013,15]
[422353315,1778863851000,-308.7647244,0.0003013,15]
[422353308,1778863851000,-199.646,0.0003013,15]
[422353309,1778863851000,-200.0,0.0003013,15]
[422353318,1778863851000,-356.273201,0.0003013,7]
[422353316,1778863851000,-200.0,0.0003013,15]
[422353307,1778863851000,-107800.0149673,0.0003013,7]
[422353311,1778863851000,-200.0,0.0003013,15]
[422353310,1778863851000,-200.0,0.0003013,15]
[422353321,1778863851000,-356.273201,0.0003013,7]
[422353317,1778863851000,-151.0,0.0003013,7]
[422353322,1778863851000,-151.0,0.0003013,7]
[422353319,1778863851000,-356.273201,0.0003013,7]